Cogmind - Beta 15 @@@ ROGUE MODE // 2025.05.18 @ 23:33:57 Player: Occam Result: Destroyed by G9-ELW(R) with Subdweller Laser Performance ------------- Evolutions (0) 0 Regions Visited (2) 400 Robots Destroyed (28) 140 Value Destroyed (559) 559 Prototype IDs (0) 0 Alien Tech Used (0) 0 Bonus (0) 0 TOTAL SCORE: 1099 Bonus ------- None Cogmind --------- Core Integrity 0/250 Matter 163/300 Energy 158/160 System Corruption 0% Temperature Cool (21) Movement Rolling (115) Ox1 Location -10/Subcaves Parts ------- > --- POWER (1) -------- Light Nuclear Core > --- PROPULSION (2) --- Compact Wheel Compact Wheel > --- UTILITY (2) ------ Large Storage Unit Structural Scanner > --- WEAPON (2) ------- Particle Gun Subdweller Laser > --- INVENTORY (15) --- Ion Engine Light Ion Engine Seismic Detector Light Armor Plating Hacking Suite Trap Extractor (2/4 Shock) Trap Extractor (0/4) Medium Laser Makeshift Laser Assault Rifle Grenade Launcher Rocket Launcher Rocket Launcher Rocket Launcher Mining Laser Peak State ------------ > --- POWER ------------ Light Nuclear Core > --- PROPULSION ------- Compact Wheel Compact Wheel > --- UTILITY ---------- Large Storage Unit Structural Scanner > --- WEAPON ----------- Particle Gun Subdweller Laser > --- INVENTORY -------- Ion Engine Light Ion Engine Seismic Detector Light Armor Plating Hacking Suite Trap Extractor Trap Extractor Medium Laser Makeshift Laser Assault Rifle Grenade Launcher Rocket Launcher Rocket Launcher Rocket Launcher Mining Laser [Rating: 13] Favorites ----------- Power Light Nuclear Core Engine Light Ion Engine Power Core Light Nuclear Core Propulsion Light Treads Treads Light Treads Leg Aluminum Leg Wheel Compact Wheel Utility Structural Scanner Device Structural Scanner Storage Small Storage Unit Weapon Assault Rifle Energy Gun Medium Laser Ballistic Gun Assault Rifle Launcher Rocket Launcher Special Weapon Mining Laser Build | -11 -10 -10 ------- Run | Yrd Mat Sub Slots Evolved . | . . . Power . | . . . Propulsion . | . . . Utility . | . . . Weapon . | . . . Parts Attached 18 | 1 13 4 Power 1 | . 1 . Engine . | . . . Core 1 | . 1 . Reactor . | . . . Propulsion 4 | . 3 1 Treads 2 | . 2 . Leg . | . . . Wheel 2 | . 1 1 Hover . | . . . Flight . | . . . Utility 4 | 1 3 . Device 3 | 1 2 . Storage 1 | . 1 . Processor . | . . . Hackware . | . . . Protection . | . . . Artifact . | . . . Weapon 9 | . 6 3 Energy Gun 4 | . 2 2 Energy Cannon . | . . . Ballistic Gun 2 | . 2 . Ballistic Cannon . | . . . Launcher 2 | . 1 1 Special Weapon 1 | . 1 . Impact Weapon . | . . . Slashing Weapon . | . . . Piercing Weapon . | . . . Special Melee Weapon . | . . . Unidentified Prototypes . | . . . Parts Lost 4 | . 2 2 Power 1 | . 1 . Propulsion 2 | . 1 1 Utility . | . . . Weapon 1 | . . 1 Highest Loss Streak 2 | . 1 2 To Critical Strikes . | . . . Average Backups 9 | 6 8 14 Power . | 1 . 2 Propulsion 1 | 4 1 . Utility 3 | . 2 5 Weapon 4 | 1 3 7 Tool/Special . | . . . Unused Backups 21 | 7 6 8 Power 5 | 1 2 2 Propulsion 4 | 3 1 . Utility 5 | 1 1 3 Weapon 7 | 2 2 3 Tool/Special . | . . . Average Slot Usage (%) 98 | . 98 98 Engine 6 | . 8 . Core 6 | . 4 14 Treads 18 | . 22 3 Wheel 9 | . 4 23 Device 14 | . 14 14 Storage 14 | . 14 14 Energy Gun 14 | . 14 14 Ballistic Gun 11 | . 11 13 Special Weapon 2 | . 2 . Peak Build Rating 13 | 8 11 13 Average Rating 8 | 6 8 11 On Entrance 8 | 6 8 11 Naked Turns . | . . . Heaviest Build 31 | 13 31 31 Greatest Support 40 | 20 40 32 Greatest Overweight (x) 1 | . 1 1 Average Overweight (x) . | . . . Largest Inventory Capacity 15 | 8 15 15 Average Capacity 10 | 8 9 15 Most Carried 15 | 8 15 15 Average Carried 9 | 6 8 14 Final Capacity 15 | 8 15 15 Final Carried 15 | 8 15 15 Class Distribution -------------------- 100% | Mutant Dominant Class ---------------- Mutant | -10/Materials Mutant | -10/Subcaves Resources | -11 -10 -10 ----------- Run | Yrd Mat Sub Matter Collected 619 | 231 332 56 Remotely . | . . . Salvage Created 688 | 104 566 18 Parts 41 | 6 33 2 Haulers Intercepted . | . . . Recyclers Shooed 2 | 1 1 . Parts Field Recycled . | . . . Retrieved Matter . | . . . Parts Self-Destructed 2 | . . 2 Prevented . | . . . Kills | -11 -10 -10 ------- Run | Yrd Mat Sub Combat Hostiles Destroyed 19 | . 14 5 Guns 12 | . 11 1 AOE 7 | . 3 4 Classes Destroyed 8 | 2 5 1 Builder 1 | . 1 . Tunneler 2 | 1 1 . Recycler 2 | 1 1 . Operator 1 | . 1 . Watcher 3 | . 3 . Swarmer 9 | . 6 3 Grunt 9 | . 8 1 Sentry 1 | . . 1 Best Kill Streak 5 | 2 5 4 Combat Bots Only 4 | . 3 4 Max Kills in Single Turn 5 | 1 5 2 Gunslinging . | . . . Exploded 3 | . 3 2 Melee . | . . . Uniques/NPCs Destroyed . | . . . Combat | -11 -10 -10 -------- Run | Yrd Mat Sub Hostile Shots Fired 109 | . 71 38 Missed 27 | . 11 16 Hits 82 | . 60 22 Projectile 82 | . 60 22 Damage Taken 958 | . 599 359 Core 266 | . 92 174 Absorbed by Shields . | . . . Regen/Repaired (Parts) 32 | . 32 . Core Remaining (%) 100 | 100 . . Volleys Fired 87 | 7 63 17 Largest 2 | 2 2 2 Hottest 150 | 70 150 125 Shots Fired 163 | 14 124 25 Gun 144 | 14 113 17 Cannon . | . . . Launcher 9 | . 1 8 Special 10 | . 10 . Kinetic 66 | 7 52 7 Thermal 88 | 7 71 10 Explosive 9 | . 1 8 Electromagnetic . | . . . Robot Hit Streak 21 | 4 21 8 Robot Miss Streak 5 | 2 5 2 Penetration Max . | . . . Secondary Targets 1 | . 1 . Max Gunslinging Chain 1 | . 1 . Shots Hit Robots 99 | 8 74 17 Core Hits 40 | 3 30 7 Critical Kills . | . . . Critical Parts Destroyed . | . . . Critical Strikes 2 | . 2 . Burn 2 | . 2 . Melee Attacks . | . . . Impact . | . . . Slashing . | . . . Piercing . | . . . Sneak Attacks . | . . . Combat Hostiles . | . . . Follow-up Attacks . | . . . Damage Inflicted 1883 | 106 1173 604 Guns 1254 | 106 972 176 Cannons . | . . . Explosions 629 | . 201 428 Melee . | . . . Ramming . | . . . Kinetic 638 | 69 504 65 Thermal 616 | 37 468 111 Explosive 629 | . 201 428 Electromagnetic . | . . . Impact . | . . . Slashing . | . . . Piercing . | . . . Highest Corruption . | . . . Average Corruption . | . . . Corruption Purged . | . . . Corruption Blocked . | . . . Overload Shots . | . . . Overflow Damage 37 | . . 37 Projectiles . | . . . Explosions 37 | . . 37 Melee . | . . . Knockbacks . | . . . Impact . | . . . Kinetic . | . . . Secondary . | . . . Self-Inflicted Damage 40 | . . 40 Shots 1 | . . 1 Rammed . | . . . Targets Rammed . | . . . Kicked . | . . . Crushed . | . . . Highest Temperature 120 | 65 120 15 Average Temperature 33 | 31 33 9 Received Heat Transfer 309 | . 222 87 Siege Activations . | . . . Martial Activations . | . . . Shielding Activations . | . . . Robots Disrupted . | . . . Combat Hostiles . | . . . Robots Corrupted . | . . . Combat Hostiles . | . . . Parts Fried . | . . . Impact Corruptions . | . . . Robots Melted . | . . . Combat Hostiles . | . . . Parts Melted 2 | . 2 . Heat Transferred 1801 | 111 1443 247 Parts Sabotaged . | . . . Parts Stolen . | . . . Parts Stripped . | . . . Power Chain Reactions . | . . . Alert | -11 -10 -10 ------- Run | Yrd Mat Sub Maximum Alert Level . | . . . Low Security (%) 100 | 100 100 . Level 1 . | . . . Level 2 . | . . . Level 3 . | . . . Level 4 . | . . . Level 5 . | . . . High Security . | . . . Max Security . | . . . Peak Influence 197 | 10 197 . Initial . | . . . Average 64 | 1 67 . Influence Increases 600 | 10 480 110 Destroy 0b10 Robot/C 380 | . 280 100 Destroy 0b10 Robot/NC 45 | 10 35 . Destroy Leader 66 | . 56 10 Successful Hack 28 | . 28 . Disable Machine 15 | . 15 . Destroy Structure 21 | . 21 . Lose Combat Pursuer 45 | . 45 . Influence Decreases 600 | 10 372 218 Entered New Map 52 | . . 52 Time Decay 508 | 10 352 146 Lost Part 40 | . 20 20 Squads Dispatched 2 | . 2 . Investigation . | . . . Extermination . | . . . Reinforcement 2 | . 2 . Assault . | . . . Garrison . | . . . Intercept . | . . . Searches Triggered . | . . . Construction Impeded . | . . . Haulers Reinforced . | . . . Active Scanning Responses . | . . . Cargo Convoy Interrupts . | . . . Stealth | -11 -10 -10 --------- Run | Yrd Mat Sub Distress Signals 2 | . 2 . Communications Jammed . | . . . Distress Signals . | . . . Times Spotted 29 | . 24 5 Peak Tracking Total 6 | . 6 3 Tactical Retreats 2 | . 2 . Traps | -11 -10 -10 ------- Run | Yrd Mat Sub Traps Triggered . | . . . Indirectly . | . . . Trap Hack Attempts . | . . . Triggered . | . . . Disarmed . | . . . Reprogrammed 2 | . 2 . Reused . | . . . Traps Extracted 2 | . 2 . Installed . | . . . Triggered . | . . . Most Traps Carried 2 | . 2 2 Machines | -11 -10 -10 ---------- Run | Yrd Mat Sub Machines Disabled 1 | . 1 . Max in Single Turn 1 | . 1 . Machines Repaired . | . . . Machines Dismantled . | . . . Machines Sabotaged . | . . . Overloaded Fab Kills . | . . . Hacking | -11 -10 -10 --------- Run | Yrd Mat Sub Machines Accessed 6 | . 6 . Terminals 5 | . 5 . Fabricators . | . . . Repair Stations 1 | . 1 . Recycling Units . | . . . Scanalyzers . | . . . Garrison Access . | . . . Total Hacks 22 | . 22 . Successful 14 | . 14 . Failed 8 | . 8 . Catastrophic . | . . . Database Lockouts . | . . . Manual 15 | . 15 . Terminals 19 | . 19 . Fabricators . | . . . Repair Stations 3 | . 3 . Recycling Units . | . . . Scanalyzers . | . . . Garrison Access . | . . . Terminal Hacks 9 | . 9 . Robot Analysis 4 | . 4 . Branch Access Points 1 | . 1 . Terminal Index 1 | . 1 . Reprogram Traps 1 | . 1 . Hauler Manifests 1 | . 1 . Zone Layout 1 | . 1 . Fabricator Hacks . | . . . Repair Station Hacks 2 | . 2 . Scan Component 1 | . 1 . Repair 1 | . 1 . Recycling Unit Hacks . | . . . Scanalyzer . | . . . Garrison Access Hacks . | . . . Unauthorized Hacks 3 | . 3 . Terminals 3 | . 3 . Assimilate 1 | . 1 . Botnet 2 | . 2 . Fabricators . | . . . Repair Stations . | . . . Recycling Units . | . . . Scanalyzers . | . . . Garrison Access . | . . . Data Cores Recovered . | . . . Used . | . . . Hacking Detections 6 | . 6 . Full Trace Events 1 | . 1 . Feedback Events . | . . . Feedback Blocked . | . . . Robot Schematics Acquired . | . . . Robots Built . | . . . Authchips . | . . . Time . | . . . Total Robot Build Rating . | . . . Part Schematics Acquired . | . . . Parts Built . | . . . Authchips . | . . . Time . | . . . Total Part Build Rating . | . . . Parts Repaired 1 | . 1 . Time 26 | . 26 . Parts Recycled . | . . . Recycled Matter . | . . . Retrieved Matter . | . . . Retrieved Components . | . . . Parts Scanalyzed . | . . . Part Schematics Acquired . | . . . Parts Damaged . | . . . Bothacking | -11 -10 -10 ------------ Run | Yrd Mat Sub Used RIF Installer . | . . . Robots Hacked . | . . . Non-combat . | . . . Combat . | . . . Robot Hacks Applied . | . . . Relay Couplers Released . | . . . Fabnet Peak Effective % . | . . . Robots Rewired . | . . . Allies Hacked . | . . . Hacks Repelled . | . . . Allies | -11 -10 -10 -------- Run | Yrd Mat Sub Total Allies 1 | . 1 . Largest Group 1 | . 1 1 Highest-Rated Group 10 | . 10 10 Highest-Rated Ally 10 | . 10 10 Total Orders . | . . . Ally Attacks . | . . . Total Damage . | . . . Kills . | . . . Allies Corrupted . | . . . Allies Melted . | . . . Intel | -11 -10 -10 ------- Run | Yrd Mat Sub Active Infowar (turns) 1517 | 16 1174 327 Structural 1115 | . 928 187 Seismic 402 | 16 246 140 Robot Analysis Total 4 | . 4 . Derelict Logs Recovered . | . . . Drone Launches . | . . . Drone Recoveries . | . . . Exploration | -11 -10 -10 ------------- Run | Yrd Mat Sub Turns Passed 1564 | 54 1183 327 Spaces Moved 875 | 24 615 236 Core . | . . . Treads 314 | . 314 . Legs 24 | 24 . . Wheels 537 | . 301 236 Hover . | . . . Flight . | . . . Fastest Speed 100 | 120 100 100 Average Speed 126 | 120 136 101 Slowest Speed 160 | 120 160 115 Overloaded Moves . | . . . Propulsion Burnouts . | . . . Robots Hopped . | . . . Potential Cave-ins . | . . . Cave-ins Triggered . | . . . Exploration Rate (%) 33 | 4 86 11 Regions Visited 2 Branch Regions 1 Pre-discovered Areas . | . . . Known Exits Taken . | . . . Unknown Exits Taken 2 | 1 1 . Scrap Searched 1 | . . 1 Spaces Dug 21 | . 9 12 Terrain Destroyed 73 | . 19 54 Melee . | . . . Projectile 9 | . 9 . AOE 64 | . 10 54 Terrain Rammed . | . . . Walls Destroyed . | . . . Machines Disabled . | . . . Actions | -11 -10 -10 --------- Run | Yrd Mat Sub Total 1146 | 35 816 295 Wait 129 | . 96 33 Move 873 | 23 614 236 Hop . | . . . Pick Up 19 | 3 14 2 Fast Attach 3 | 1 2 . Attach 6 | . 4 2 Detach 1 | . 1 . Swap 18 | . 13 5 Drop 10 | 1 9 . Fire 87 | 7 63 17 Melee . | . . . Ram . | . . . Kick . | . . . Crush . | . . . Escape Stasis . | . . . Rewire . | . . . Trap . | . . . Miscellaneous . | . . . Route ------- -11/Scrapyard -10/Materials (discovered 6 exits: [*Mat x3] / *Min x2 / [*Sub]) -10/Subcaves History --------- Turn | Location | Event 23 | -11/Scrapyard | Discovered new exit (range 3) 55 | -11/Scrapyard | Entered Materials 323 | -10/Materials | Build established: Mutant 337 | -10/Materials | Discovered new exit (range 3) 391 | -10/Materials | Identified exit to Mines 604 | -10/Materials | Repaired Assault Rifle 687 | -10/Materials | Discovered new exit (range 4) 1051 | -10/Materials | Discovered new exit (range 8) 1095 | -10/Materials | Discovered new exit (range 11) 1238 | -10/Materials | Entered Subcaves 1238 | -10/Subcaves | Accompanied by 1 ally 1239 | -10/Subcaves | Approached by a straggling Scientist 1293 | -10/Subcaves | Core integrity fell below 50% 1321 | -10/Subcaves | Core integrity fell below 20% 1565 | -10/Subcaves | Destroyed by G9-ELW(R) with Subdweller Laser Last Messages --------------- 01305_ Lgt. Treads destroyed. 01306_ The unstable cave ceiling collapses. 01306_ S-10 Pest destroyed. 01329_ Y-45 Defender destroyed. 01333_ The unstable cave ceiling collapses. 01338_ Heat Sink fries itself beyond repair. CL-DJC(c): "I think it's somewhere southwest of here" 01341_ Acquired 13 matter. 01348_ The unstable cave ceiling collapses. 01351_ Acquired 2 matter. 01353_ The unstable cave ceiling collapses. CL-DJC(c): "I think it's somewhere southwest of here" 01397_ Searching scrap... 01397_ Found Mak. Laser. 01397_ Found Sub. Laser. 01397_ Found 41 Matter. 01398_ Acquired 41 matter. 01399_ Acquired Mak. Laser. 01401_ Acquired Sub. Laser. CL-DJC(c): "I think it's somewhere southwest of here" Map ----- +----------------------------------------------------+ | ?????????????????????????????????????????????????? | | ?????????????????????????????????????????????????? | | ?????????????????????????????????????????????????? | | ?????????????????????????????????????????????????? | | ?????????????????????????????????????????????????? | | ?????????????????????????????????????????????????? | | ?????????????????????????????????????????????????? | | ?????????????????????????????????????????????????? | | ?????????????????????????????????????????????????? | | ?????????????????????????????????????????????????? | | ?????????????????????????????????????????????????? | | ?????????????????????????????????????????????????? | | ?????????????????????????????????????????????????? | | ????????????????????????? ##????? ??????????????? | | ????????????????????????? ###### ?????????????? | | ????????????????????????? ##### ##?????????????? | | ?????????????????????????? # # ##?????????????? | | ?????????????????????????# ##?????????????? | | ?????????????????????????##R ????????????????? | | ????????????????????????### # #????????????????? | | ???????????????????????#### ###????????????????? | | ????????????## ???######## ##????????????????? | | ????????????## ???####### ????????????????? | | ???????????### ?"# # # ## ?????????????????? | | ???????????## # "R ####?????????????????? | | ??????????? ???## "R@ ##?????????????????? | | ?????????????????### # ###o ###????????????????? | | ?????????????????### # ### ####???????????????? | | ??????????????????## # " ## ####??????????????? | | ??????????????????## ## #####????????????? | | ??????????????????# ## #### ####????????????? | | ???????????????????? ## ### ##????????????? | | ??????????????????? ? ## ## ##????????????? | | ???????????????? ?? # ######????????????? | | ????????????????####?# ### #####????????????? | | ????????????????####?## ## ###########????? | | ?????????????????????## ### # ###########????? | | ??????????????????????# #### # ### ###???? | | ??????????????????????## ??##### ###???? | | ??????????????????????## ????### ## # ## # #??? | | ??????????????????????????????############# ### ?? | | ??????????????????????????????##############"###?? | | ?????????????????????????????????????????#### ##?? | | ?????????????????????????????????????????#### ##?? | | ?????????????????????????????????????????### #### | | ?????????????????????????????????????????## ###### | | ?????????????????????????????????????????## #### # | | ?????????????????????????????????????????### ### | | ?????????????????????????????????????????#### ## | | ??????????????????????????????????????????#### ## | +----------------------------------------------------+ Best States ------------- Heat Dissipation 25 Energy Generation 14 Energy Capacity 160 Matter Stores 300 Matter Capacity 300 Sight Range 16 Terrain Scan Density 10 Evasion (%) 55 Recoil Reduction 2 Trap Extractor Capacity 4 Item Schematics ----------------- None Robot Schematics ------------------ None Fabricated ------------ Nothing Repaired ---------- Assault Rifle | 68% | -10/Materials Alien Tech Used ----------------- None Achievements -------------- None Challenges ------------ None Game ------ Seed AuthchipTripodShield Manual? 0 Play Time 00:16:33 Cumulative 606.9 hours Start 2025.05.18 @ 23:18:48 End 2025.05.18 @ 23:33:57 Sessions 1 Manual Loads 0 Difficulty Rogue Special Mode None Game No. 278 Rogue 134 Adventurer 144 Explorer 0 Win Type - Total 10 Types 4/1/4/1/0/0/0/0/0/0 Lore% 76 Gallery% 77 Achievement% 71 Wizard Run 0 Options --------- Layout 0 ASCII 0 Keyboard 0 Movement Mouse Keybinds 0 Fullscreen 2 Font 20/SmallcapsGlow Map View 66x50 Zoom Use 0% Tactical HUD 1 Map Filters NONE Filters NONE Steam 1 RUN: 91503916-7fab-4cf7-895a-f6ec1dd95847